bitfinex-derivatives/quotes_SOLF0:USTF0_20250523
["timestamp","ask_amount","ask_price","bid_price","bid_amount"]
[1748030491613,5.62154148,179.18,179.14,5.62331286]
[1748030492215,0.04154148,179.18,179.15,5.5807]
[1748030492518,0.04154148,179.18,179.14,0.04241286]
[1748030493316,5.5809,179.15,179.14,0.04241286]
[1748030497322,5.5809,179.15,179.14,1.286e-05]
[1748030497626,5.58,179.15,178.99,119.5853]
[1748030497927,9.77798133,179.11,179.02,5.5849]
[1748030498226,117.74,179.1,178.99,119.5853]
[1748030498431,0.04094546,179.06,179.03,0.03778365]
[1748030498727,5.584,179.05,179.03,0.03778365]
[1748030499033,5.62474546,179.06,179.03,0.03778365]
[1748030499328,0.04094546,179.06,179.03,0.03778365]
[1748030499529,117.74,179.05,179.03,0.03778365]
[1748030499825,127.51798133,179.05,178.98,5.20761747]
[1748030500225,5.5855,179.01,178.93,3.9367]
[1748030500527,117.74,179.05,178.93,3.9367]
[1748030500929,0.03766822,179.01,178.97,0.03531158]
[1748030501127,0.03766822,179.01,178.97,117.81531158]
[1748030501429,117.74,179.05,178.97,117.81531158]
[1748030501726,5.5834,179.07,178.97,117.81531158]
[1748030502121,5.5838,179.06,178.97,117.81531158]
[1748030502322,0.03849248,179.03,179.0,0.03557466]
[1748030502524,0.03849248,179.03,179.02,5.5848]
[1748030505641,0.03849248,179.03,179.0,0.03557466]
[1748030507024,5.5853,179.01,179.0,0.03557466]
[1748030508127,5.58,179.01,178.96,5.5865]
[1748030508429,5.58,179.01,178.86,549.20761747]
[1748030508430,15.97446154,178.97,178.86,5.20761747]
[1748030508638,117.8,178.96,178.86,5.20761747]
[1748030508828,5.5883,178.92,178.84,5.5903]
[1748030509027,117.8,178.91,178.84,5.5903]
[1748030509227,0.0387657,178.89,178.86,0.03758169]
[1748030510537,5.5895,178.88,178.86,0.03758169]
[1748030511532,5.5896,178.87,178.86,0.03758169]
[1748030511836,0.0387657,178.89,178.86,0.03758169]
[1748030512134,5.5894,178.88,178.86,0.03758169]
[1748030512335,16.0014864,178.88,178.68,1.9243]
[1748030512536,16.0014864,178.88,178.74,1.8804]
[1748030512729,16.0014864,178.88,178.75,1.9366]
[1748030513437,16.0014864,178.88,178.8,0.04124831]
[1748030513438,0.03699935,178.83,178.8,0.04124831]
[1748030513635,120.33699935,178.83,178.8,0.04124831]
[1748030513935,5.5915,178.81,178.8,0.04124831]
[1748030517634,5.5928,178.77,178.74,1.8804]
[1748030517833,5.5928,178.77,178.71,120.28]
[1748030518135,5.5928,178.77,178.72,5.5941]
[1748030518536,0.04194982,178.76,178.73,0.0428941]
[1748030518839,0.04087173,178.76,178.73,0.0428941]
[1748030519535,5.5936,178.75,178.73,0.0428941]
[1748030519838,0.04087173,178.76,178.63,120.38]
[1748030520129,16.0014864,178.77,178.65,3.9331]
[1748030520536,16.0014864,178.77,178.63,120.38]
[1748030520737,5.5954,178.69,178.64,5.5968]
[1748030520939,0.04301795,178.68,178.64,5.5968]
[1748030521439,5.63861795,178.68,178.64,5.5968]
[1748030521735,0.04301795,178.68,178.63,120.38]
[1748030521933,5.5962,178.66,178.61,5.8921]
[1748030522239,5.5962,178.66,178.61,3.8977]
[1748030522627,0.04301795,178.68,178.61,3.8977]
[1748030523339,16.04450435,178.68,178.59,125.9983]
[1748030523545,16.04450435,178.68,178.57,1.9944]
[1748030523740,0.035266,178.64,178.55,120.4]
[1748030524041,5.5972,178.63,178.58,5.5985]
[1748030524340,120.435266,178.64,178.53,3.8208]
[1748030524530,0.03739652,178.6,178.53,3.8208]
[1748030524935,0.03739652,178.6,178.57,5.5989]
[1748030525136,0.03739652,178.6,178.51,603.64]
[1748030526642,0.03739652,178.6,178.57,5.5989]
[1748030527136,5.5994,178.56,178.52,5.6005]
[1748030527345,5.64115468,178.56,178.52,5.6005]
[1748030528042,0.04175468,178.56,178.49,5.7067]
[1748030528342,0.04175468,178.56,178.55,5.5996]
[1748030530043,120.44,178.61,178.59,5.5981]
[1748030530242,120.44,178.61,178.52,120.48]
[1748030530539,5.5981,178.6,178.56,5.5991]
[1748030530944,120.44,178.61,178.52,120.48]
[1748030531143,0.03912778,178.58,178.55,0.04171793]
[1748030532048,0.03912778,178.58,178.55,5.64121793]
[1748030532249,0.03912778,178.58,178.55,0.04171793]
[1748030532750,0.03912778,178.58,178.55,5.64121793]
[1748030533143,0.03912778,178.58,178.55,0.04171793]
[1748030534738,5.5993,178.56,178.55,0.04171793]
[1748030535762,5.599,178.57,178.55,0.04171793]
[1748030536163,0.03912778,178.58,178.55,0.04171793]
[1748030537470,5.5993,178.56,178.55,0.04171793]
[1748030540164,5.6006,178.52,178.48,120.52]
[1748030540461,136.5614864,178.56,178.46,5.6023]
[1748030540767,16.0014864,178.52,178.39,120.56]
[1748030540966,2.0228,178.51,178.39,120.56]
[1748030541171,0.0385053,178.47,178.39,120.56]
[1748030541361,0.0385053,178.47,178.33,16.9768]
[1748030541362,0.0385053,178.47,178.35,120.56]
[1748030541669,0.03899926,178.43,178.35,120.56]
[1748030542069,0.03899926,178.43,178.27,21.89978655]
[1748030542366,0.03883802,178.37,178.3,1.8355]
[1748030542563,120.06,178.46,178.3,1.8355]
[1748030542774,5.6017,178.49,178.33,16.0014864]
[1748030542775,120.06,178.49,178.33,16.0014864]
[1748030542959,120.06,178.49,178.34,120.06]
[1748030543159,125.6616,178.49,178.34,120.06]
[1748030543367,120.06,178.49,178.34,120.06]
[1748030543569,0.03906305,178.43,178.4,0.04314078]
[1748030543758,0.03906305,178.43,178.42,5.6034]
[1748030549172,0.03906305,178.43,178.41,5.6039]
[1748030549476,0.03906305,178.43,178.4,0.04314078]
[1748030550972,5.604,178.41,178.4,0.04314078]
[1748030552076,1.91476305,178.43,178.34,5.6061]
[1748030552288,484.2,178.42,178.27,10.68318655]
[1748030552481,16.09043435,178.4,178.27,10.68318655]
[1748030552785,120.14,178.39,178.27,10.68318655]
[1748030553088,5.6062,178.34,178.3,5.6073]
[1748030553386,0.03916923,178.35,178.27,10.68318655]
[1748030553893,0.03916923,178.35,178.28,1.9769]
[1748030554275,0.03916923,178.35,178.32,5.6065]
[1748030554475,0.03916923,178.35,178.28,1.9769]
[1748030555186,5.64516923,178.35,178.32,5.6067]
[1748030555479,0.03916923,178.35,178.28,1.9769]
[1748030556170,5.607,178.32,178.28,7.5847]
[1748030557686,0.03916923,178.35,178.27,10.68318655]
[1748030557889,0.04077791,178.33,178.27,10.68318655]
[1748030559082,5.608,178.28,178.27,10.68318655]
[1748030559782,5.6458215,178.29,178.27,10.68318655]
[1748030559989,0.0381215,178.29,178.27,10.68318655]
[1748030560185,0.0381215,178.29,178.27,16.29138655]
[1748030560686,0.0381215,178.29,178.27,10.68318655]
[1748030561792,5.6460215,178.29,178.27,10.68318655]
[1748030562284,5.608,178.28,178.27,10.68318655]
[1748030562482,0.0381215,178.29,178.27,10.68318655]
[1748030562984,5.608,178.28,178.27,10.68318655]
[1748030564391,29.16603435,178.41,178.27,10.68318655]
[1748030564586,120.22,178.4,178.27,10.68318655]
[1748030565390,120.22,178.4,178.28,108.4883]
[1748030565594,0.03711123,178.35,178.32,0.03741002]
[1748030565892,5.6042,178.41,178.37,5.6049]
[1748030566089,120.22,178.44,178.33,120.22]
[1748030566486,125.8231,178.44,178.33,120.22]
[1748030566688,5.6031,178.44,178.37,0.04184041]
[1748030566886,0.0401706,178.4,178.38,120.22]
[1748030567086,5.6025,178.46,178.38,124.0831]
[1748030567396,0.04072465,178.44,178.4,0.04073939]
[1748030567595,0.04072465,178.44,178.41,5.6039]
[1748030569801,0.04072465,178.44,178.4,226.76073939]
[1748030571300,0.04072465,178.44,178.41,1.9487]
[1748030571705,0.04072465,178.44,178.41,7.5526]
[1748030572703,5.64402465,178.44,178.41,1.9487]
[1748030573094,0.04072465,178.44,178.41,1.9487]
[1748030573298,5.6039,178.41,178.4,0.04073939]
[1748030574691,0.04072465,178.44,178.4,0.04073939]
[1748030574989,0.04072465,178.44,178.4,127.30473939]
[1748030575193,5.64372465,178.44,178.4,127.30473939]
[1748030575402,0.04072465,178.44,178.4,127.30473939]
[1748030575599,0.04072465,178.44,178.41,5.6037]
[1748030575794,0.04072465,178.44,178.41,1.8894]
[1748030577199,0.04072465,178.44,178.42,106.5]
[1748030577400,484.52,178.51,178.42,106.5]
[1748030577799,5.6027,178.45,178.42,106.5]
[1748030577998,484.52,178.51,178.42,106.5]
[1748030578404,5.6026,178.46,178.45,0.03591479]
[1748030581909,5.6021,178.47,178.45,0.03591479]
[1748030582202,0.04283923,178.48,178.45,0.03591479]
[1748030583708,0.04283923,178.48,178.47,5.602]
[1748030584507,0.04283923,178.48,178.46,127.2423]
[1748030584808,0.04283923,178.48,178.46,121.64]
[1748030585208,0.04283923,178.48,178.45,0.03591479]
[1748030585505,5.6024,178.46,178.45,0.03591479]
[1748030589705,0.04283923,178.48,178.45,0.03591479]
[1748030590105,121.62,178.55,178.46,121.62]
[1748030590309,121.62,178.55,178.47,1.9509]
[1748030591114,0.03664547,178.53,178.49,0.04073721]
[1748030591614,5.6008,178.51,178.49,0.04073721]
[1748030591918,0.03664547,178.53,178.49,0.04073721]
[1748030592226,5.6011,178.5,178.49,0.04073721]
[1748030593416,0.03664547,178.53,178.49,0.04073721]
[1748030594216,5.6011,178.5,178.49,0.04073721]
[1748030596413,5.6011,178.5,178.49,3.721e-05]
[1748030599215,127.2211,178.5,178.49,3.721e-05]
[1748030599821,5.6031,178.44,178.42,5.6035]
[1748030600014,121.62,178.5,178.42,5.6035]
[1748030600417,5.6028,178.45,178.42,5.6035]
[1748030600616,121.62,178.5,178.38,1.9766]
[1748030600816,5.6032,178.44,178.42,0.04156505]
[1748030601221,0.03944891,178.46,178.42,0.04156505]
[1748030602110,5.6033,178.43,178.42,0.04156505]
[1748030602310,121.62,178.45,178.35,123.5778]
[1748030602516,123.5762,178.45,178.36,5.6052]
[1748030602828,5.6046,178.39,178.36,5.6052]
[1748030603028,123.5762,178.45,178.35,129.1836]
[1748030603217,123.5762,178.45,178.32,484.52]
[1748030603419,0.03729571,178.4,178.37,0.03532578]
[1748030603822,5.6049,178.38,178.37,0.03532578]
[1748030605021,119.77729571,178.4,178.37,0.03532578]
[1748030605627,5.6048,178.39,178.37,0.03532578]
[1748030606321,5.6049,178.38,178.37,0.03532578]
[1748030606724,119.77729571,178.4,178.37,0.03532578]
[1748030607926,5.6048,178.39,178.37,0.03532578]
[1748030608228,119.77729571,178.4,178.37,0.03532578]
[1748030608624,5.6049,178.38,178.37,0.03532578]
[1748030609427,7.5673,178.39,178.37,0.03532578]
[1748030609725,1.9627,178.39,178.37,0.03532578]
[1748030610328,5.6049,178.38,178.37,0.03532578]
[1748030611528,1.9627,178.39,178.3,5.6072]
[1748030611726,1.998,178.38,178.3,5.6072]
[1748030612329,5.6067,178.33,178.32,0.03671286]
[1748030613027,119.8,178.35,178.32,0.03671286]
[1748030613424,5.6064,178.34,178.32,0.03671286]
[1748030613830,119.8,178.35,178.32,0.03671286]
[1748030614026,5.6064,178.33,178.32,0.03671286]
[1748030615234,119.8,178.35,178.32,0.03671286]
[1748030615632,119.8,178.35,178.32,5.64331286]
[1748030615826,119.8,178.35,178.32,0.03671286]
[1748030616032,0.04135485,178.36,178.32,0.03671286]
[1748030616224,0.04135485,178.36,178.35,5.6058]
[1748030617127,0.04135485,178.36,178.34,5.606]
[1748030617330,0.04135485,178.36,178.32,0.03671286]
[1748030619730,5.6064,178.33,178.32,0.03671286]
[1748030620734,5.608,178.28,178.27,10.68318655]
[1748030621228,119.82,178.34,178.27,10.68318655]
[1748030621428,119.82,178.34,178.27,16.29138655]
[1748030621736,0.04247847,178.32,178.27,16.29138655]
[1748030621926,5.6074,178.3,178.27,16.29138655]
[1748030623234,5.6074,178.3,178.27,10.68318655]
[1748030623435,5.6078,178.29,178.27,10.68318655]
[1748030624438,5.608,178.28,178.27,10.68318655]
[1748030629542,125.448,178.28,178.27,10.68318655]
[1748030632249,125.448,178.28,178.27,2.23518655]
[1748030632448,125.448,178.28,178.27,8.655e-05]
[1748030636642,5.6078,178.29,178.27,8.655e-05]
[1748030636840,119.78,178.31,178.27,8.655e-05]
[1748030637046,5.6074,178.3,178.27,8.655e-05]
[1748030637647,5.6077,178.29,178.27,8.655e-05]
[1748030639247,5.608,178.28,178.27,8.655e-05]
[1748030649757,5.6099,178.22,178.21,3.732]
[1748030650254,0.03871596,178.23,178.17,161.0]
[1748030650554,0.03871596,178.23,178.16,119.78]
[1748030650555,9.90200312,178.18,178.08,10.26071972]
[1748030650852,9.90200312,178.09,178.05,48.86363636]
[1748030651158,9.90200312,178.09,178.03,11.57022593]
[1748030651159,9.90997237,178.06,178.03,11.57022593]
[1748030651356,9.90997237,178.06,178.0,9.83221101]
[1748030651656,9.90997237,178.03,178.0,9.83221101]
[1748030651856,5.6165,178.01,178.0,9.83221101]
[1748030652059,119.8,178.02,177.99,17.30839803]
[1748030652453,125.4163,178.02,177.99,17.30839803]
[1748030652759,119.8,178.04,177.98,3.31193761]
[1748030653454,9.91220166,178.02,177.98,3.31193761]
[1748030653652,135.95373453,178.04,177.98,3.31193761]
[1748030654458,135.95373453,178.04,177.97,9.83221101]
[1748030654766,5.6174,177.98,177.97,9.83221101]
[1748030654958,119.84,177.98,177.97,9.83221101]
[1748030656461,0.04146185,177.99,177.97,9.83221101]
[1748030656661,0.04146185,177.99,177.93,3.8333]
[1748030657264,0.04146185,177.99,177.96,5.618]
[1748030657765,0.04146185,177.99,177.97,5.6177]
[1748030657966,0.04146185,177.99,177.93,3.8333]
[1748030658868,119.88,177.98,177.93,3.8333]
[1748030659073,5.6181,177.96,177.93,3.8333]
[1748030659264,119.88,177.98,177.93,3.8333]
[1748030660772,5.6186,177.95,177.93,3.8333]
[1748030661267,5.6186,177.95,177.93,1.9047]
[1748030661671,5.6187,177.94,177.93,1.9047]
[1748030662372,5.66110241,177.95,177.93,1.9047]
[1748030662671,0.04270241,177.95,177.93,1.9047]
[1748030662971,16.15373453,178.03,177.93,1.9047]
[1748030663272,119.94,178.02,177.93,1.9047]
[1748030664068,0.04110465,177.99,177.96,0.03897881]
[1748030664472,5.6177,177.97,177.96,0.03897881]
[1748030666882,128.5777,177.97,177.96,0.03897881]
[1748030667477,122.96,177.97,177.96,0.03897881]
[1748030668389,128.5777,177.97,177.96,0.03897881]
[1748030670687,0.04110465,177.99,177.96,0.03897881]
[1748030670889,122.96,178.01,177.96,0.03897881]
[1748030671585,16.15373453,178.05,177.96,5.65697881]
[1748030671779,0.03993746,178.02,177.96,5.65697881]
[1748030672093,5.6167,178.01,177.96,5.65697881]
[1748030672393,0.03993746,178.02,177.96,5.65697881]
[1748030672795,5.65623746,178.02,177.96,0.03897881]
[1748030672992,0.03993746,178.02,177.96,0.03897881]
[1748030673193,122.96,178.05,177.96,0.03897881]
[1748030673491,122.96,178.05,177.96,122.96]
[1748030673885,122.96,178.05,178.0,5.6166]
[1748030674080,132.86314622,178.09,178.01,3.9126824]
[1748030674285,484.76,178.12,178.01,3.9126824]
[1748030674286,0.03953355,178.04,178.01,3.9126824]
[1748030674491,0.0366445,178.04,178.01,3.91056073]
[1748030674989,2.6056445,178.04,178.01,3.91056073]
[1748030675389,9.90314622,178.09,178.01,3.91056073]
[1748030675687,5.6159,178.03,178.01,3.91056073]
[1748030676187,5.6162,178.02,178.01,3.91056073]
[1748030677694,5.6162,178.02,178.01,0.03656073]
[1748030679297,0.036117,178.04,178.01,0.03656073]
[1748030679898,5.6161,178.03,178.01,0.03656073]
[1748030680303,0.036117,178.04,178.01,0.03656073]
[1748030680503,5.6158,178.03,178.01,0.03656073]
[1748030680801,0.036117,178.04,178.01,0.03656073]
[1748030680997,5.6162,178.02,178.01,0.03656073]
[1748030681804,0.036117,178.04,178.01,0.03656073]
[1748030682399,5.616,178.03,178.01,0.03656073]
[1748030683993,5.651717,178.04,178.01,0.03656073]
[1748030684301,0.036117,178.04,178.01,0.03656073]
[1748030685100,5.616,178.03,178.01,0.03656073]
[1748030685500,0.036117,178.04,178.01,0.03656073]
[1748030685806,5.651817,178.04,178.01,0.03656073]
[1748030685994,0.036117,178.04,178.01,0.03656073]
[1748030686499,5.6161,178.03,178.01,0.03656073]
[1748030686704,0.036117,178.04,178.01,0.03656073]
[1748030688704,0.036117,178.04,178.01,5.65296073]
[1748030688902,0.036117,178.04,178.01,0.03656073]
[1748030689400,5.651617,178.04,178.01,0.03656073]
[1748030689705,5.651617,178.04,178.01,5.65296073]
[1748030690202,0.036117,178.04,178.02,5.6161]
[1748030690404,0.036117,178.04,178.01,0.03656073]
[1748030690707,5.651817,178.04,178.01,0.03656073]
[1748030691706,5.651817,178.04,178.01,5.65296073]
[1748030692004,5.651817,178.04,178.01,0.03656073]
[1748030692806,5.651817,178.04,178.01,5.65296073]
[1748030693104,5.651817,178.04,178.01,0.03656073]
[1748030694207,5.6159,178.03,178.01,0.03656073]
[1748030694408,0.036117,178.04,178.01,0.03656073]
[1748030694804,5.6162,178.02,178.01,0.03656073]
[1748030695406,0.036117,178.04,178.01,0.03656073]
[1748030695807,5.616,178.03,178.01,0.03656073]
[1748030696008,0.036117,178.04,178.01,0.03656073]
[1748030696308,5.6162,178.02,178.01,0.03656073]
[1748030696709,0.036117,178.04,178.01,0.03656073]
[1748030696913,5.17903853,178.04,178.01,0.03656073]
[1748030697810,5.6159,178.03,178.01,0.03656073]
[1748030698012,5.17903853,178.04,178.01,5.65296073]
[1748030698415,10.79483853,178.04,178.01,5.65296073]
[1748030699516,5.17903853,178.04,178.02,5.6161]
[1748030700216,5.17903853,178.04,178.01,0.03656073]
[1748030702017,5.6158,178.03,178.01,0.03656073]
[1748030703620,5.17903853,178.04,178.02,5.6159]
[1748030704215,5.17903853,178.04,178.01,0.03656073]
[1748030704921,5.17903853,178.04,178.03,5.6158]
[1748030705113,5.17903853,178.04,178.01,0.03656073]
[1748030705315,0.036117,178.04,178.01,0.03656073]
[1748030705620,5.616,178.03,178.01,0.03656073]
[1748030705815,0.036117,178.04,178.01,0.03656073]
[1748030706115,0.036117,178.04,178.01,5.65286073]
[1748030706612,5.651717,178.04,178.01,5.65286073]
[1748030706810,0.036117,178.04,178.01,0.03656073]
[1748030707219,0.036117,178.04,178.02,5.6159]
[1748030707517,0.036117,178.04,178.01,0.03656073]
[1748030707718,0.036117,178.04,178.03,5.6158]
[1748030708114,0.036117,178.04,178.01,0.03656073]
[1748030709710,0.036117,178.04,178.03,5.6158]
[1748030710310,5.14292153,178.06,178.05,5.6152]
[1748030712128,0.03696349,178.07,178.06,5.6149]
[1748030712420,0.03696349,178.07,178.05,161.04235629]
[1748030712619,0.03696349,178.07,178.06,5.6149]
[1748030716615,6.82333985,178.13,178.11,5.6132]
[1748030717313,6.82333985,178.13,178.1,5.6136]
[1748030717721,6.86062224,178.13,178.1,5.65455382]
[1748030718322,6.86062224,178.13,178.11,5.6132]
[1748030718523,6.86062224,178.13,178.1,0.04095382]
[1748030718717,6.86062224,178.13,178.11,106.72]
[1748030718911,6.86062224,178.13,178.1,0.04095382]
[1748030719216,6.86062224,178.13,178.11,228.06]
[1748030719722,6.86062224,178.13,178.12,5.613]
[1748030719913,6.86062224,178.13,178.11,228.06]
[1748030720224,6.86062224,178.13,178.1,0.04095382]
[1748030720524,0.03728239,178.13,178.11,5.6131]
[1748030721422,0.03728239,178.13,178.12,5.613]
[1748030724209,6.82333985,178.22,178.16,5.6115]
[1748030724409,6.82333985,178.22,178.13,121.3]
[1748030724720,6.82333985,178.22,178.14,9.90314622]
[1748030724922,6.82333985,178.22,178.17,9.90314622]
[1748030725121,6.82333985,178.22,178.18,226.92]
[1748030725424,6.8610778,178.22,178.21,5.6102]
[1748030726720,0.03773795,178.22,178.21,5.6102]
[1748030728120,0.03773795,178.22,178.18,226.9563269]
[1748030728320,0.03773795,178.22,178.18,0.0363269]
[1748030728626,5.6108,178.19,178.18,0.0363269]
[1748030729823,5.83383795,178.22,178.11,226.84]
[1748030730022,5.7961,178.22,178.11,226.84]
[1748030730322,5.6125,178.14,178.11,226.84]
[1748030730518,9.90314622,178.2,178.03,1.87]
[1748030730825,0.03591136,178.13,178.11,9.90314622]
[1748030731026,0.03910802,178.14,178.11,236.74314622]
[1748030731225,0.04083867,178.14,178.11,236.78453448]
[1748030732626,0.04083867,178.14,178.13,5.6127]
[1748030734324,0.04083867,178.14,178.11,5.65458826]
[1748030734529,0.04083867,178.14,178.11,0.04138826]
[1748030735125,0.04083867,178.14,178.12,5.6128]
[1748030735629,0.04083867,178.14,178.13,5.6127]
[1748030748440,0.04083867,178.14,178.12,7.588]
[1748030748741,0.04083867,178.14,178.11,161.04138826]
[1748030749445,0.04083867,178.14,178.12,5.613]
[1748030749643,0.04083867,178.14,178.11,161.04138826]
[1748030750241,0.04083867,178.14,178.12,5.613]
[1748030750437,0.04083867,178.14,178.11,161.04138826]
[1748030750639,0.04083867,178.14,178.11,0.04138826]
[1748030750940,0.04083867,178.14,178.11,5.65448826]
[1748030751138,0.04083867,178.14,178.11,0.04138826]
[1748030752344,5.613,178.12,178.11,0.04138826]
[1748030752545,0.04083867,178.14,178.11,0.04138826]
[1748030753435,0.04083867,178.14,178.12,5.613]
[1748030753640,0.04083867,178.14,178.11,0.04138826]
[1748030754050,0.04083867,178.14,178.11,5.65468826]
[1748030755545,5.65333867,178.14,178.11,5.65468826]
[1748030755747,0.04083867,178.14,178.11,5.65468826]
[1748030756044,0.04083867,178.14,178.12,5.6129]
[1748030756943,0.04083867,178.14,178.13,5.6127]
[1748030757246,0.04083867,178.14,178.11,0.04138826]
[1748030757846,5.65323867,178.14,178.11,5.65448826]
[1748030758241,0.04083867,178.14,178.11,0.04138826]
[1748030758547,0.04083867,178.14,178.11,5.65458826]
[1748030759745,0.04083867,178.14,178.12,5.6129]
[1748030760251,0.04083867,178.14,178.11,0.04138826]
[1748030761049,0.04083867,178.14,178.12,5.613]
[1748030761249,5.65323867,178.14,178.11,0.04138826]
[1748030761456,0.04083867,178.14,178.11,0.04138826]
[1748030761749,5.613,178.12,178.11,0.04138826]
[1748030762149,118.78083867,178.14,178.02,655.53945128]
[1748030762455,9.90314622,178.12,178.02,611.29715128]
[1748030762749,9.90314622,178.12,178.02,123.98485128]
[1748030762945,5.6156,178.04,178.02,123.98485128]
[1748030763246,0.03762308,178.05,178.02,123.98485128]
[1748030763443,0.04035583,178.05,178.02,10.89656379]
[1748030763642,0.04035583,178.05,178.02,5.28066379]
[1748030763843,5.6155,178.04,178.02,0.03581251]
[1748030764052,0.04035583,178.05,178.02,0.03581251]
[1748030766159,5.65565583,178.05,178.02,5.65191251]
[1748030766345,5.65565583,178.05,178.02,0.03581251]
[1748030766346,0.04035583,178.05,178.02,0.03581251]
[1748030767850,0.04035583,178.05,178.04,5.6155]
[1748030769755,0.04035583,178.05,178.03,5.6157]
[1748030769951,0.04035583,178.05,178.02,0.03581251]
[1748030771461,0.04035583,178.05,178.02,5.65171251]
[1748030771643,0.04035583,178.05,178.02,0.03581251]
[1748030772655,0.04035583,178.05,178.02,5.65171251]
[1748030773355,5.65565583,178.05,178.02,5.65171251]
[1748030774656,0.04035583,178.05,178.02,0.03581251]
[1748030775765,0.04035583,178.05,178.04,5.6155]
[1748030780858,5.13460571,178.13,178.12,5.613]
[1748030781064,5.13460571,178.13,178.06,118.8]
[1748030781658,5.13460571,178.13,178.12,5.613]
[1748030783861,0.04293372,178.14,178.13,5.6127]
[1748030785862,10.29895629,178.24,178.14,11.2246]
[1748030786066,10.29895629,178.24,178.21,9.90314622]
[1748030786257,10.29895629,178.24,178.22,119.7]
[1748030786759,10.29895629,178.24,178.16,9.90314622]
[1748030787068,0.03549173,178.22,178.18,0.04166425]
[1748030787863,0.03549173,178.22,178.21,5.6102]
[1748030791966,0.03549173,178.22,178.19,5.6108]
[1748030792362,0.03549173,178.22,178.18,0.04166425]
[1748030793764,0.03549173,178.22,178.19,5.6108]
[1748030794067,0.03549173,178.22,178.18,0.04166425]
[1748030794471,0.03549173,178.22,178.2,5.6103]
[1748030794773,0.03549173,178.22,178.18,0.04166425]
[1748030795775,0.03549173,178.22,178.2,5.6103]
[1748030796371,0.03549173,178.22,178.21,5.6102]
[1748030796877,0.03549173,178.22,178.18,0.04166425]
[1748030797269,0.03549173,178.22,178.2,5.6105]
[1748030797776,0.03549173,178.22,178.18,0.04166425]
[1748030797973,0.03549173,178.22,178.19,5.6107]
[1748030798379,0.03549173,178.22,178.18,0.04166425]
[1748030798577,0.03549173,178.22,178.21,5.6102]
[1748030798878,0.03549173,178.22,178.18,0.04166425]
[1748030799277,0.03549173,178.22,178.21,5.6102]
[1748030801977,0.03549173,178.22,178.21,125.2502]
[1748030802175,125.2679,178.29,178.25,5.6089]
[1748030803281,119.69959718,178.29,178.25,0.03875929]
[1748030804182,125.30749718,178.29,178.25,5.64745929]
[1748030804383,0.03959718,178.29,178.25,0.03875929]
[1748030805883,0.03959718,178.29,178.26,5.6086]
[1748030806588,0.03959718,178.29,178.25,0.03875929]
[1748030807387,9.9427434,178.29,178.25,0.03875929]
[1748030807585,119.62,178.28,178.25,0.03875929]
[1748030808079,1.8703,178.27,178.18,119.62]
[1748030808284,15.54714622,178.27,178.18,119.62]
[1748030808486,15.54714622,178.27,178.15,485.16]
[1748030808784,5.6101,178.22,178.18,5.6109]
[1748030809179,5.64815063,178.22,178.19,5.6108]
[1748030811380,0.03805063,178.22,178.18,0.04116419]
[1748030812377,0.03805063,178.22,178.21,5.6102]
[1748030813792,9.90314622,178.38,178.18,0.04116419]
[1748030813793,119.62,178.32,178.25,5.6088]
[1748030813984,5.6077,178.3,178.21,9.90314622]
[1748030814184,5.6077,178.3,178.22,1.9969]
[1748030814893,0.04026496,178.28,178.27,5.6082]
[1748030815092,0.04026496,178.28,178.26,0.03786256]
[1748030817792,0.04026496,178.28,178.26,5.64646256]
[1748030819497,0.04026496,178.28,178.26,0.03786256]
[1748030820098,5.64836496,178.28,178.26,0.03786256]
[1748030820296,0.04026496,178.28,178.26,0.03786256]
[1748030820698,5.64846496,178.28,178.26,0.03786256]
[1748030821298,0.04026496,178.28,178.26,0.03786256]
[1748030822199,0.04026496,178.28,178.27,5.6083]
[1748030822699,0.04026496,178.28,178.26,0.03786256]
[1748030822903,0.04026496,178.28,178.26,5.64646256]
[1748030823501,0.04026496,178.28,178.27,5.6083]
[1748030823703,0.04026496,178.28,178.26,0.03786256]
[1748030824602,0.04026496,178.28,178.26,5.64646256]
[1748030825702,0.04026496,178.28,178.26,0.03786256]
[1748030825999,0.04026496,178.28,178.21,161.0]
[1748030826199,5.6095,178.24,178.21,5.6099]
[1748030826400,128.18314622,178.32,178.2,118.28]
[1748030826703,128.18314622,178.32,178.24,5.6092]
[1748030826906,128.18314622,178.32,178.2,118.28]